Cogmind - Beta 13 @@@ ROGUE MODE // 2024.04.28 @ 13:10:31 Player: LEWiKK Result: Destroyed by Y-45 Defender via exploding Compression Vault Performance ------------- Evolutions (1) 500 Regions Visited (4) 800 Robots Destroyed (57) 285 Value Destroyed (1548) 1548 Prototype IDs (2) 40 Alien Tech Used (0) 0 Bonus (15) 15 TOTAL SCORE: 3188 Bonus ------- High Alert Combat Kills 15 Cogmind --------- Core Integrity 0/400 Matter 292/300 Energy 89/100 System Corruption 0% Temperature Cool (0) Movement Walking (400) Ox4 Location -9/Storage Parts ------- > --- POWER (1) -------- (None) > --- PROPULSION (3) --- Aluminum Leg > --- UTILITY (3) ------ High-capacity Storage Unit > --- WEAPON (2) ------- Improved Assault Rifle Hammer > --- INVENTORY (20) --- Heavy Ion Engine Heavy Ion Engine Heavy Ion Engine Flight Unit Improved Flight Unit Improved Trap Extractor (0/6) Improved EM Shotgun Improved EM Shotgun Improved EM Shotgun Improved EM Shotgun Improved Medium Laser Improved Medium Laser Advanced Beam Cannon Improved Assault Rifle Improved Assault Rifle Improved Assault Rifle Datajack Peak State ------------ > --- POWER ------------ Light Nuclear Core > --- PROPULSION ------- Carbon-fiber Leg Carbon-fiber Leg Carbon-fiber Leg > --- UTILITY ---------- High-capacity Storage Unit Trap Scanner Insulated Plating > --- WEAPON ----------- Mini Grenade Launcher Mace > --- INVENTORY -------- Heavy Ion Engine Cooled Ion Engine Carbon-fiber Leg Improved Flight Unit Improved Sensor Array Improved Trap Extractor Improved EM Shotgun Improved EM Shotgun Improved EM Shotgun Improved Medium Laser Datajack [Rating: 26] Favorites ----------- Power Ion Engine Engine Ion Engine Power Core Light Nuclear Core Propulsion Aluminum Leg Treads Light Treads Leg Aluminum Leg Flight Unit Flight Unit Utility Small Storage Unit Device Trap Scanner Storage Small Storage Unit Protection Medium Armor Plating Weapon Mace Energy Gun Heavy EM Pulse Gun Ballistic Gun Assault Rifle Launcher EMP Blaster Impact Weapon Mace Special Melee Weapon Datajack Build | -11 -10 -10 -9 -9 ------- Run | Yrd Mat Min Mat Sto Slots Evolved 2 | . . . 2 . Power . | . . . . . Propulsion 1 | . . . 1 . Utility 1 | . . . 1 . Weapon . | . . . . . Parts Attached 38 | . 5 7 7 19 Power 4 | . 1 . . 3 Engine 3 | . 1 . . 2 Core 1 | . . . . 1 Reactor . | . . . . . Propulsion 13 | . 1 1 4 7 Treads 2 | . . . . 2 Leg 10 | . 1 1 4 4 Wheel . | . . . . . Hover . | . . . . . Flight 1 | . . . . 1 Utility 11 | . 1 4 2 4 Device 2 | . . . 1 1 Storage 1 | . . . . 1 Processor . | . . . . . Hackware . | . . . . . Protection 8 | . 1 4 1 2 Artifact . | . . . . . Weapon 10 | . 2 2 1 5 Energy Gun 1 | . 1 . . . Energy Cannon . | . . . . . Ballistic Gun 1 | . . . . 1 Ballistic Cannon . | . . . . . Launcher 5 | . 1 1 1 2 Special Weapon . | . . . . . Impact Weapon 2 | . . 1 . 1 Slashing Weapon . | . . . . . Piercing Weapon . | . . . . . Special Melee Weapon 1 | . . . . 1 Unidentified Prototypes 2 | . . . . 2 Parts Lost 26 | . 1 5 1 19 Power 3 | . . . . 3 Propulsion 11 | . 1 1 1 8 Utility 7 | . . 2 . 5 Weapon 5 | . . 2 . 3 Highest Loss Streak 6 | . 1 2 1 6 To Critical Strikes . | . . . . . Average Slot Usage (%) 87 | . 97 89 95 78 Engine 11 | . 14 14 11 8 Treads 2 | . . . . 6 Leg 23 | . 27 23 30 19 Device 2 | . . . 7 4 Storage 12 | . 14 14 11 11 Protection 12 | . 12 13 12 10 Energy Gun 3 | . 12 2 . . Launcher 7 | . 12 8 11 4 Impact Weapon 9 | . . 11 11 11 Naked Turns . | . . . . . Heaviest Build 54 | 11 24 24 23 54 Greatest Support 45 | 20 20 25 45 45 Greatest Overweight (x) 12 | . 2 2 . 12 Average Overweight (x) . | . . . . 1 Largest Inventory Capacity 20 | . 8 8 8 20 Average Capacity 11 | . 8 8 8 18 Most Carried 18 | . 8 8 8 18 Average Carried 9 | . 7 7 7 13 Final Capacity 20 | 8 8 8 8 20 Final Carried 17 | 6 8 8 8 17 Class Distribution -------------------- 84% | Mutant 15% | Scavenger-Mutant Dominant Class ---------------- Mutant | -10/Materials Mutant | -10/Mines Mutant | -9/Materials Mutant | -9/Storage Resources | -11 -10 -10 -9 -9 ----------- Run | Yrd Mat Min Mat Sto Matter Collected 868 | 189 85 75 45 474 Remotely . | . . . . . Salvage Created 1731 | . 395 247 278 811 Parts 96 | . 20 11 21 44 Haulers Intercepted 1 | . . . . 1 Recyclers Shooed . | . . . . . Parts Field Recycled . | . . . . . Retrieved Matter . | . . . . . Parts Self-Destructed . | . . . . . Prevented . | . . . . . Kills | -11 -10 -10 -9 -9 ------- Run | Yrd Mat Min Mat Sto Combat Hostiles Destroyed 41 | . 8 7 7 19 Melee 10 | . . 2 . 8 Guns 4 | . 3 1 . . AOE 21 | . 4 1 7 9 Classes Destroyed 10 | . 2 1 3 4 Worker 7 | . 2 1 1 3 Builder 4 | . . . . 4 Hauler 1 | . . . . 1 Recycler 3 | . . . . 3 Operator 1 | . . . 1 . Swarmer 8 | . . 3 . 5 Grunt 23 | . 8 4 5 6 Brawler 1 | . . . . 1 Duelist 2 | . . . 1 1 Sentry 7 | . . . 1 6 Best Kill Streak 12 | . 3 2 5 12 Combat Bots Only 4 | . 4 2 4 3 Max Kills in Single Turn 3 | . 2 1 2 3 Gunslinging . | . . . . . Exploded 2 | . 1 1 2 2 Melee 1 | . . 1 . 1 Uniques/NPCs Destroyed . | . . . . . Combat | -11 -10 -10 -9 -9 -------- Run | Yrd Mat Min Mat Sto Hostile Shots Fired 284 | . 46 58 18 162 Missed 67 | . 13 16 3 35 Damage Taken 3135 | . 426 459 221 2029 Core 481 | . 57 23 43 358 Absorbed by Shields . | . . . . . Redirected to Shielding 32 | . . . . 32 Ignored by Resistances 45 | . . . 21 24 Core Remaining (%) 84 | 100 . 68 . . Volleys Fired 73 | . 30 8 11 24 Largest 1 | . 1 1 1 1 Hottest 45 | . 45 45 33 33 Shots Fired 73 | . 30 8 11 24 Gun 27 | . 23 3 . 1 Cannon . | . . . . . Launcher 46 | . 7 5 11 23 Special . | . . . . . Kinetic 1 | . . . . 1 Thermal . | . . . . . Explosive 28 | . . . 5 23 Electromagnetic 44 | . 30 8 6 . Robot Hit Streak 10 | . 6 1 3 10 Robot Miss Streak 6 | . 2 6 2 1 Penetration Max . | . . . . . Secondary Targets . | . . . . . Shots Hit Robots 103 | . 19 12 8 64 Core Hits 65 | . 11 2 15 37 Critical Kills . | . . . . . Critical Parts Destroyed 12 | . . 6 . 6 Critical Strikes 13 | . 1 6 . 6 Corrupt 1 | . 1 . . . Smash 12 | . . 6 . 6 Melee Attacks 125 | . . 17 3 105 Impact 125 | . . 17 3 105 Slashing . | . . . . . Piercing . | . . . . . Sneak Attacks 2 | . . 1 . 1 Combat Hostiles . | . . . . . Follow-up Attacks . | . . . . . Damage Inflicted 4398 | . 704 431 680 2583 Guns 294 | . 264 14 . 16 Cannons . | . . . . . Explosions 2453 | . 440 32 632 1349 Melee 1651 | . . 385 48 1218 Ramming . | . . . . . Kinetic 16 | . . . . 16 Thermal 253 | . 151 . 102 . Explosive 1667 | . . . 318 1349 Electromagnetic 811 | . 553 46 212 . Impact 1651 | . . 385 48 1218 Slashing . | . . . . . Piercing . | . . . . . Highest Corruption . | . . . . . Average Corruption . | . . . . . Corruption Purged . | . . . . . Corruption Blocked . | . . . . . Overload Shots . | . . . . . Overflow Damage 455 | . . 243 24 188 Projectiles . | . . . . . Explosions 41 | . . . 24 17 Melee 414 | . . 243 . 171 Knockbacks 2 | . . . . 2 Impact 2 | . . . . 2 Kinetic . | . . . . . Secondary . | . . . . . Self-Inflicted Damage 237 | . 35 76 7 119 Shots 9 | . 1 4 1 3 Rammed . | . . . . . Targets Rammed . | . . . . . Kicked . | . . . . . Crushed . | . . . . . Highest Temperature 170 | . 170 20 5 17 Average Temperature 50 | . 60 9 2 11 Received Heat Transfer 840 | . 216 63 93 468 Siege Activations . | . . . . . Robots Corrupted 2 | . 1 1 . . Combat Hostiles 2 | . 1 1 . . Parts Fried 14 | . 1 7 2 4 Impact Corruptions 21 | . . 9 . 12 Robots Melted . | . . . . . Combat Hostiles . | . . . . . Parts Melted . | . . . . . Heat Transferred 350 | . 200 . 150 . Parts Sabotaged . | . . . . . Parts Stolen . | . . . . . Parts Stripped . | . . . . . Power Chain Reactions 6 | . 2 . 4 . Alert | -11 -10 -10 -9 -9 ------- Run | Yrd Mat Min Mat Sto Peak Influence 460 | . 216 194 347 460 Initial 146 | . . 84 27 146 Average 161 | . 67 39 181 320 Maximum Alert Level 2 | . 1 . 1 2 Low Security (%) 61 | . 93 100 64 7 Level 1 33 | . 6 . 35 79 Level 2 5 | . . . . 13 Level 3 . | . . . . . Level 4 . | . . . . . Level 5 . | . . . . . High Security . | . . . . . Max Security . | . . . . . Squads Dispatched 9 | . 3 . 1 5 Investigation 2 | . 1 . . 1 Extermination . | . . . . . Reinforcement 4 | . 2 . 1 1 Assault . | . . . . . Garrison 3 | . . . . 3 Intercept . | . . . . . Searches Triggered . | . . . . . Construction Impeded . | . . . . . Haulers Reinforced . | . . . . . Active Scanning Responses . | . . . . . Cargo Convoy Interrupts . | . . . . . Stealth | -11 -10 -10 -9 -9 --------- Run | Yrd Mat Min Mat Sto Distress Signals 5 | . 2 . . 3 Communications Jammed . | . . . . . Distress Signals . | . . . . . Times Spotted 67 | . 16 14 12 25 Peak Tracking Total 5 | . 5 3 3 4 Tactical Retreats 6 | . . 5 . 1 Traps | -11 -10 -10 -9 -9 ------- Run | Yrd Mat Min Mat Sto Traps Triggered . | . . . . . Indirectly . | . . . . . Trap Hack Attempts 8 | . . . . 8 Triggered . | . . . . . Disarmed . | . . . . . Reprogrammed . | . . . . . Reused . | . . . . . Traps Extracted . | . . . . . Installed . | . . . . . Triggered . | . . . . . Machines | -11 -10 -10 -9 -9 ---------- Run | Yrd Mat Min Mat Sto Machines Disabled 10 | . . 2 2 6 Max in Single Turn 1 | . . 1 1 1 Machines Repaired . | . . . . . Machines Dismantled . | . . . . . Machines Sabotaged . | . . . . . Overloaded Fab Kills . | . . . . . Hacking | -11 -10 -10 -9 -9 --------- Run | Yrd Mat Min Mat Sto Machines Accessed 13 | . 6 2 2 3 Terminals 10 | . 5 . 2 3 Fabricators . | . . . . . Repair Stations 1 | . 1 . . . Recycling Units . | . . . . . Scanalyzers . | . . . . . Garrison Access . | . . . . . Total Hacks 40 | . 19 2 10 9 Successful 18 | . 9 2 4 3 Failed 22 | . 10 . 6 6 Catastrophic 2 | . 1 . 1 . Database Lockouts . | . . . . . Manual 19 | . 12 . 4 3 Terminals 37 | . 18 . 10 9 Fabricators . | . . . . . Repair Stations 1 | . 1 . . . Recycling Units . | . . . . . Scanalyzers . | . . . . . Garrison Access . | . . . . . Terminal Hacks 10 | . 4 2 3 1 Open Door 2 | . . 2 . . Branch Access Points 2 | . 1 . 1 . Locate Traps 3 | . 2 . 1 . Registered Prototypes 1 | . 1 . . . Zone Layout 2 | . . . 1 1 Fabricator Hacks . | . . . . . Repair Station Hacks . | . . . . . Recycling Unit Hacks . | . . . . . Scanalyzer . | . . . . . Garrison Access Hacks . | . . . . . Unauthorized Hacks 8 | . 5 . 1 2 Terminals 8 | . 5 . 1 2 Botnet 8 | . 5 . 1 2 Fabricators . | . . . . . Repair Stations . | . . . . . Recycling Units . | . . . . . Scanalyzers . | . . . . . Garrison Access . | . . . . . Data Cores Recovered . | . . . . . Used . | . . . . . Hacking Detections 11 | . 6 . 2 3 Full Trace Events 3 | . 2 . . 1 Feedback Events . | . . . . . Feedback Blocked . | . . . . . Robot Schematics Acquired . | . . . . . Robots Built . | . . . . . Authchips . | . . . . . Time . | . . . . . Total Robot Build Rating . | . . . . . Part Schematics Acquired . | . . . . . Parts Built . | . . . . . Authchips . | . . . . . Time . | . . . . . Total Part Build Rating . | . . . . . Parts Repaired . | . . . . . Time . | . . . . . Parts Recycled . | . . . . . Recycled Matter . | . . . . . Retrieved Matter . | . . . . . Retrieved Components . | . . . . . Parts Scanalyzed . | . . . . . Part Schematics Acquired . | . . . . . Parts Damaged . | . . . . . Bothacking | -11 -10 -10 -9 -9 ------------ Run | Yrd Mat Min Mat Sto Used RIF Installer . | . . . . . Robots Hacked . | . . . . . Non-combat . | . . . . . Combat . | . . . . . Robot Hacks Applied . | . . . . . Relay Couplers Released . | . . . . . Fabnet Peak Effective % . | . . . . . Robots Rewired 1 | . 1 . . . Allies Hacked . | . . . . . Hacks Repelled . | . . . . . Allies | -11 -10 -10 -9 -9 -------- Run | Yrd Mat Min Mat Sto Total Allies 1 | . 1 . . . Largest Group 1 | . 1 1 . . Highest-Rated Group 16 | . 16 16 . . Highest-Rated Ally 16 | . 16 16 . . Total Orders . | . . . . . Ally Attacks 4 | . 4 . . . Total Damage 65 | . 65 . . . Kills . | . . . . . Allies Corrupted . | . . . . . Allies Melted . | . . . . . Intel | -11 -10 -10 -9 -9 ------- Run | Yrd Mat Min Mat Sto Robot Analysis Total . | . . . . . Derelict Logs Recovered 2 | . . 2 . . Drone Launches . | . . . . . Drone Recoveries . | . . . . . Exploration | -11 -10 -10 -9 -9 ------------- Run | Yrd Mat Min Mat Sto Turns Passed 4190 | . 670 1596 342 1582 Spaces Moved 1935 | 1 319 892 242 481 Core . | . . . . . Treads 121 | . . . . 121 Legs 1813 | 1 319 892 242 359 Wheels . | . . . . . Hover . | . . . . . Flight 1 | . . . . 1 Fastest Speed 120 | 120 120 120 120 120 Average Speed 178 | 120 177 162 120 237 Slowest Speed 1020 | 120 260 260 120 1020 Overloaded Moves . | . . . . . Propulsion Burnouts . | . . . . . Robots Hopped . | . . . . . Cave-ins Triggered . | . . . . . Exploration Rate (%) 51 | 2 62 98 26 69 Regions Visited 4 Branch Regions 2 Pre-discovered Areas 2 | . . 2 . . Known Exits Taken 2 | . 1 . 1 . Unknown Exits Taken 2 | 1 . 1 . . Scrap Searched 1 | . . 1 . . Spaces Dug 2 | . . . . 2 Terrain Destroyed 109 | . 9 15 53 32 Melee 2 | . . . . 2 Projectile . | . . . . . AOE 107 | . 9 15 53 30 Terrain Rammed . | . . . . . Walls Destroyed . | . . . . . Machines Disabled . | . . . . . Actions | -11 -10 -10 -9 -9 --------- Run | Yrd Mat Min Mat Sto Total 2386 | . 397 1002 278 709 Wait 138 | . 18 62 5 53 Move 1931 | . 318 891 241 481 Hop . | . . . . . Pick Up 41 | . 11 9 5 16 Fast Attach 15 | . 3 3 2 7 Attach 14 | . 1 4 1 8 Detach 2 | . . 1 . 1 Swap 9 | . 1 . 4 4 Drop 25 | . 10 7 6 2 Fire 73 | . 30 8 11 24 Melee 125 | . . 17 3 105 Ram . | . . . . . Kick . | . . . . . Crush . | . . . . . Escape Stasis . | . . . . . Rewire 5 | . 5 . . . Trap 8 | . . . . 8 Miscellaneous . | . . . . . Route ------- -11/Scrapyard -10/Materials (discovered 4 exits: *Mat x2 / *Min x2) -10/Mines (discovered 2 exits: *Mat x2) -9/Materials (discovered 2 exits: Min / *Sto) -9/Storage History --------- Turn | Location | Event 1 | -11/Scrapyard | Discovered new exit (range 0) 1 | -11/Scrapyard | Entered Materials 238 | -10/Materials | Discovered new exit (range 8) 310 | -10/Materials | Build established: Mutant 461 | -10/Materials | Discovered new exit (range 16) 635 | -10/Materials | Identified exit to Mines 671 | -10/Materials | Entered Mines 671 | -10/Mines | Accompanied by 1 ally 759 | -10/Mines | Learned location of Zion (-7) 855 | -10/Mines | Found the Drone Emporium 860 | -10/Mines | Learned location of Recycling (-9) 1068 | -10/Mines | Found Prototype Device 1682 | -10/Mines | Discovered new exit (range 8) 1781 | -10/Mines | Discovered new exit (range 9) 1929 | -10/Mines | Met a Derelict who couldn't figure out how to use a Trap Extractor 2079 | -10/Mines | Received a Rocket Launcher from a helpful Derelict 2267 | -10/Mines | Entered Materials 2267 | -9/Materials | Evolved 2 slots: Propulsion x1, Utility x1 2403 | -9/Materials | Discovered new exit (range 10) 2553 | -9/Materials | Identified exit to Mines 2553 | -9/Materials | Identified exit to Storage 2609 | -9/Materials | Entered Storage 2855 | -9/Storage | Lost 4 parts (1p1n1u1w) 3053 | -9/Storage | Garrison activated, responded to threat 3103 | -9/Storage | Core integrity fell below 50% 3173 | -9/Storage | Lost 6 parts (3n2u1w) 3491 | -9/Storage | Build established: Scavenger-Mutant 3681 | -9/Storage | Core integrity fell below 20% 3977 | -9/Storage | Build established: Mutant 4191 | -9/Storage | Destroyed by Y-45 Defender via exploding Compression Vault Last Messages --------------- Beam Rifle fried. K-01 Serf collects debris. U-05 Engineer builds a Door. K-01 Serf cleans the Compression Vault. O-16 Technician: "IFF HANDSHAKE FAILED. SECURING TERMINAL." ALERT: Hostiles spotted, dispatching reinforcements to Terminal S008. U-05 Engineer builds a Door. G-34 Mercenary destroyed. Acquired Aluminum Leg. Acquired 10 matter. R-06 Scavenger collects Sml. Laser. Acquired Flight Unit. Cld. Ion Engine destroyed. A-02 Transporter destroyed. Identified Imp. Assault Rifle. Compression Vault explodes. Aluminum Leg destroyed. Core Shielding destroyed. Map ----- +----------------------------------------------------+ | | | | | | | | | | | | | | | | | | | | | | | | | | | | | ?????????????????????????????????????????????????? | | ?????????????????????????????????????????????????? | | ??????????????????????????????##?????????????????? | | ???????????????????????#####?# ##????????????????? | | ???????????????????????# #????????????????? | | ???????????????????????+ """ #?####???????????? | | ???????????????????????# """ # ????????????? | | ???????????????????????# """ # ??????????????? | | ???????????????????????#!!Y + ???????????????? | | ???????????????????????#[= #????????????????? | | ???????????????????????#!! #????????????????? | | ??????????? ???????????#%@ #? ????????????? | | ???????????# ?????????#! Y ## #???????????? | | ???????????# ########+######### #???????????? | | ???????????# #???????# #???????????? | | ???????????# #???????# #???????????? | | ???????????# ^ #???????# +???????????? | | ???????????# #???????# #???????????? | | ???????????# #####+##### #???????# #???????????? | | ???????????????????????# #???????# #???????????? | | ???????????????????????# #???????# ########?#??? | | ???????????????????????# #???????# # #??? | | ???????????#???????????#+######### # """ ""#? | | ???????????# ??????????# # # """ T"#? | | ??????????##+########??# # # """ ""#? | | ??????????# #??# # # #??? | | ??????????# #??# + %+ """ #??? | | ??????????# #### # # """ #??? | | ??????????# # ## """ """ # # """ #??? | | ??????????# """ # ## """ """ # # ??? | | ?????????## """ # # """ """ # ############# | | ?????????# """ # ############ # | | ?????????## % ###??????????# # """ """ """ | | ?###############+######??????????# # """ """ """ | | ?# ^ #??????????# # """ """ """ | | ?+ #??????????# # | +----------------------------------------------------+ Best States ------------- Heat Dissipation 28 Energy Generation 14 Energy Capacity 280 Matter Stores 300 Matter Capacity 300 Sight Range 16 Robot Scan Range 15 Terrain Scan Density 10 Armor Coverage 300 Resistance: TH 10 Resistance: EM 15 Core Shielding 20 Evasion (%) 55 Recoil Reduction 2 Item Schematics ----------------- None Robot Schematics ------------------ None Fabricated ------------ Nothing Alien Tech Used ----------------- None Achievements -------------- None Challenges ------------ None Game ------ Seed LaserWeaponAutobeam Manual? 0 Play Time 00:41:17 Cumulative 45.4 hours Start 2024.04.28 @ 12:28:34 End 2024.04.28 @ 13:10:31 Sessions 1 Manual Loads 0 Difficulty Rogue Special Mode None Game No. 46 Rogue 46 Adventurer 0 Explorer 0 Win Type - Total 1 Types 1/0/0/0/0/0/0/0/0 Lore% 41 Gallery% 30 Achievement% 33 Wizard Run 0 Options --------- Layout 1 ASCII 0 Keyboard 1 Movement Numpad Keybinds 0 Fullscreen 2 Font 20/SmallcapsGlow Map View 54x42 Zoom Use 0% Tactical HUD 0 Map Filters NONE Filters NONE Steam 1 RUN: aea53d40-081b-41ed-831d-a927b05023a4